[Event "Betsys MČR v online bleskovém šachu 2021"]
[Site "Chess.com"]
[Date "2021.04.17"]
[Round "9"]
[White "DenisaD2008"]
[Black "Ondre2836"]
[Result "0-1"]
[WhiteElo "964"]
[BlackElo "1249"]
[TimeControl "180+1"]
[EndTime "10:29:22 PDT"]
[Termination "Uživatel Ondre2836 zvítězil matem"]

1. e4 {[%clk 0:03:00.9]} 1... d5 {[%clk 0:02:56.7]} 2. exd5 {[%clk 0:02:59.9]}
2... Qxd5 {[%clk 0:02:55.1]} 3. Nc3 {[%clk 0:03:00]} 3... Qa5 {[%clk 0:02:53.1]}
4. d4 {[%clk 0:02:56.9]} 4... Nf6 {[%clk 0:02:50.7]} 5. Bd2 {[%clk 0:02:56]}
5... c6 {[%clk 0:02:47.4]} 6. Ne4 {[%clk 0:02:51.3]} 6... Qc7 {[%clk 0:02:44.7]}
7. Bd3 {[%clk 0:02:47.9]} 7... Nxe4 {[%clk 0:02:29.1]} 8. Bxe4 {[%clk
0:02:46.7]} 8... Be6 {[%clk 0:02:14.8]} 9. Nf3 {[%clk 0:02:44]} 9... Bg4 {[%clk
0:02:11.8]} 10. h3 {[%clk 0:02:41.9]} 10... Bh5 {[%clk 0:02:11.1]} 11. g4 {[%clk
0:02:36.8]} 11... Bg6 {[%clk 0:02:10.3]} 12. Bxg6 {[%clk 0:02:35.5]} 12... hxg6
{[%clk 0:02:09.1]} 13. Qe2 {[%clk 0:02:33.3]} 13... e6 {[%clk 0:02:03.8]} 14.
O-O-O {[%clk 0:02:30.4]} 14... Bd6 {[%clk 0:02:02.7]} 15. g5 {[%clk 0:02:23.9]}
15... Nd7 {[%clk 0:01:59.2]} 16. Bc3 {[%clk 0:02:20.4]} 16... O-O-O {[%clk
0:01:54.1]} 17. Qd2 {[%clk 0:02:12.4]} 17... Rhe8 {[%clk 0:01:44.7]} 18. h4
{[%clk 0:02:01.6]} 18... Kb8 {[%clk 0:01:36.3]} 19. Bb4 {[%clk 0:01:47]} 19...
Bf4 {[%clk 0:01:33.8]} 20. Ne5 {[%clk 0:01:28.9]} 20... Bxd2+ {[%clk 0:01:31.2]}
21. Rxd2 {[%clk 0:01:27.7]} 21... Nxe5 {[%clk 0:01:28.4]} 22. dxe5 {[%clk
0:01:25.4]} 22... Rxd2 {[%clk 0:01:25.1]} 23. Bxd2 {[%clk 0:01:25.6]} 23... Qxe5
{[%clk 0:01:24.2]} 24. Re1 {[%clk 0:01:26]} 24... Qf5 {[%clk 0:01:20.9]} 25. b3
{[%clk 0:01:17.4]} 25... Rd8 {[%clk 0:01:14.4]} 26. Be3 {[%clk 0:01:09.2]} 26...
Qg4 {[%clk 0:01:08.5]} 27. a4 {[%clk 0:01:02.1]} 27... Qxh4 {[%clk 0:01:06.1]}
28. f3 {[%clk 0:00:55.3]} 28... Qxe1+ {[%clk 0:01:04.1]} 29. Kb2 {[%clk
0:00:52.9]} 29... Qxe3 {[%clk 0:01:03.4]} 30. Ka3 {[%clk 0:00:49]} 30... Qc1+
{[%clk 0:01:00.3]} 31. Kb4 {[%clk 0:00:47.6]} 31... Qxc2 {[%clk 0:00:59.7]} 32.
a5 {[%clk 0:00:45.6]} 32... Rd4+ {[%clk 0:00:57]} 33. Ka3 {[%clk 0:00:44.7]}
33... Qc1+ {[%clk 0:00:55.9]} 34. Ka2 {[%clk 0:00:43.3]} 34... Rd2# {[%clk
0:00:55.7]} 0-1

[Event "Betsys MČR v online bleskovém šachu 2021"]
[Site "Chess.com"]
[Date "2021.04.17"]
[Round "9"]
[White "marfuss"]
[Black "KarelZalesky"]
[Result "0-1"]
[WhiteElo "1974"]
[BlackElo "1935"]
[TimeControl "180+1"]
[EndTime "10:29:23 PDT"]
[Termination "Uživatel KarelZalesky zvítězil po vzdání soupeře"]

1. d4 {[%clk 0:03:00.9]} 1... Nf6 {[%clk 0:02:56.9]} 2. Bf4 {[%clk 0:03:00.2]}
2... Nc6 {[%clk 0:02:50.9]} 3. e3 {[%clk 0:03:00.6]} 3... d6 {[%clk 0:02:49.3]}
4. Nf3 {[%clk 0:03:00.6]} 4... Bf5 {[%clk 0:02:38.7]} 5. Bd3 {[%clk 0:03:00.1]}
5... Bxd3 {[%clk 0:02:37.5]} 6. Qxd3 {[%clk 0:03:00.3]} 6... g6 {[%clk
0:02:34.1]} 7. c4 {[%clk 0:02:58.7]} 7... Nh5 {[%clk 0:02:30.5]} 8. Bg3 {[%clk
0:02:58.5]} 8... Bg7 {[%clk 0:02:26.4]} 9. a3 {[%clk 0:02:57.7]} 9... e5 {[%clk
0:02:19]} 10. d5 {[%clk 0:02:45.2]} 10... Ne7 {[%clk 0:02:06.6]} 11. Nc3 {[%clk
0:02:39.1]} 11... Nf5 {[%clk 0:01:37.9]} 12. Rc1 {[%clk 0:02:21.3]} 12... O-O
{[%clk 0:01:31.6]} 13. O-O {[%clk 0:02:11.6]} 13... Re8 {[%clk 0:01:30.7]} 14.
e4 {[%clk 0:01:58.3]} 14... Nd4 {[%clk 0:01:17.1]} 15. Ne2 {[%clk 0:01:53.2]}
15... Nxe2+ {[%clk 0:01:03.3]} 16. Qxe2 {[%clk 0:01:53.1]} 16... Nxg3 {[%clk
0:01:02.6]} 17. hxg3 {[%clk 0:01:52.9]} 17... Bh6 {[%clk 0:00:55.1]} 18. Rc2
{[%clk 0:01:48.7]} 18... Qd7 {[%clk 0:00:53]} 19. b4 {[%clk 0:01:44.9]} 19... b6
{[%clk 0:00:52.5]} 20. c5 {[%clk 0:01:41.5]} 20... bxc5 {[%clk 0:00:52.5]} 21.
bxc5 {[%clk 0:01:41.7]} 21... dxc5 {[%clk 0:00:40.2]} 22. Rxc5 {[%clk
0:01:39.6]} 22... Bf8 {[%clk 0:00:40]} 23. Rc3 {[%clk 0:01:34.2]} 23... Bd6
{[%clk 0:00:39.2]} 24. Rfc1 {[%clk 0:01:30.4]} 24... Reb8 {[%clk 0:00:35.1]} 25.
Ne1 {[%clk 0:01:08.9]} 25... Rb6 {[%clk 0:00:34.8]} 26. Nd3 {[%clk 0:01:04]}
26... Rab8 {[%clk 0:00:34.3]} 27. Nc5 {[%clk 0:00:54.1]} 27... Qb5 {[%clk
0:00:30.8]} 28. a4 {[%clk 0:00:46.4]} 28... Qxe2 {[%clk 0:00:29.6]} 0-1

[Event "Betsys MČR v online bleskovém šachu 2021"]
[Site "Chess.com"]
[Date "2021.04.17"]
[Round "9"]
[White "zaciname"]
[Black "malviny"]
[Result "0-1"]
[WhiteElo "732"]
[BlackElo "1169"]
[TimeControl "180+1"]
[EndTime "10:29:25 PDT"]
[Termination "Uživatel malviny zvítězil matem"]

1. e4 {[%clk 0:03:00.9]} 1... e5 {[%clk 0:02:59.9]} 2. Nf3 {[%clk 0:03:01.1]}
2... Nc6 {[%clk 0:02:59.7]} 3. Bc4 {[%clk 0:03:01.3]} 3... Be7 {[%clk
0:02:59.3]} 4. d3 {[%clk 0:03:01.3]} 4... Nf6 {[%clk 0:02:58.5]} 5. h3 {[%clk
0:02:57.2]} 5... d6 {[%clk 0:02:58.2]} 6. Be3 {[%clk 0:02:53.4]} 6... O-O {[%clk
0:02:57.7]} 7. Qd2 {[%clk 0:02:52.3]} 7... a6 {[%clk 0:02:56.7]} 8. Nc3 {[%clk
0:02:51.9]} 8... b5 {[%clk 0:02:46.1]} 9. Bb3 {[%clk 0:02:50.9]} 9... Nb4 {[%clk
0:02:44.6]} 10. Nxb5 {[%clk 0:02:42.5]} 10... axb5 {[%clk 0:02:42]} 11. Qxb4
{[%clk 0:02:41.5]} 11... Bd7 {[%clk 0:02:34.2]} 12. Qd2 {[%clk 0:02:39.7]} 12...
c5 {[%clk 0:02:29.4]} 13. a3 {[%clk 0:02:34.2]} 13... Qc7 {[%clk 0:02:18.2]} 14.
O-O {[%clk 0:02:27.3]} 14... c4 {[%clk 0:02:04.1]} 15. dxc4 {[%clk 0:02:24.2]}
15... bxc4 {[%clk 0:01:59.9]} 16. Ba2 {[%clk 0:02:22.9]} 16... Be6 {[%clk
0:01:55]} 17. c3 {[%clk 0:02:16.1]} 17... Rfb8 {[%clk 0:01:52.9]} 18. Rab1
{[%clk 0:02:13.2]} 18... Nxe4 {[%clk 0:01:48]} 19. Ng5 {[%clk 0:02:04.6]} 19...
Nxd2 {[%clk 0:01:41.9]} 20. Bxd2 {[%clk 0:02:03.8]} 20... Bxg5 {[%clk
0:01:40.6]} 21. Bxg5 {[%clk 0:02:02.4]} 21... f6 {[%clk 0:01:40.3]} 22. Be3
{[%clk 0:02:01.2]} 22... Rb7 {[%clk 0:01:38.3]} 23. Rfd1 {[%clk 0:01:59.3]}
23... Rab8 {[%clk 0:01:37.5]} 24. Rd2 {[%clk 0:01:52.5]} 24... Bf5 {[%clk
0:01:35.3]} 25. Rbd1 {[%clk 0:01:49.5]} 25... Bd3 {[%clk 0:01:32.9]} 26. Bb1
{[%clk 0:01:45]} 26... Rxb2 {[%clk 0:01:26.8]} 27. Bxd3 {[%clk 0:01:41.8]} 27...
Rxd2 {[%clk 0:01:23.4]} 28. Rxd2 {[%clk 0:01:41]} 28... cxd3 {[%clk 0:01:23.4]}
29. Rxd3 {[%clk 0:01:39.1]} 29... Qc4 {[%clk 0:01:16.8]} 30. Rxd6 {[%clk
0:01:34.7]} 30... Qxc3 {[%clk 0:01:13.7]} 31. Kh2 {[%clk 0:01:32.8]} 31... Qxa3
{[%clk 0:01:12]} 32. Rc6 {[%clk 0:01:23.7]} 32... Qa2 {[%clk 0:01:04.8]} 33. Rc1
{[%clk 0:01:16.2]} 33... e4 {[%clk 0:01:02.4]} 34. Bf4 {[%clk 0:01:13.3]} 34...
Rb2 {[%clk 0:00:58.5]} 35. Rc8+ {[%clk 0:01:10.1]} 35... Kf7 {[%clk 0:00:57.5]}
36. Bd6 {[%clk 0:01:10.1]} 36... Rxf2 {[%clk 0:00:53.9]} 37. Rc7+ {[%clk
0:01:08]} 37... Kg6 {[%clk 0:00:53.6]} 38. Bg3 {[%clk 0:01:06]} 38... Rxg2+
{[%clk 0:00:52.7]} 39. Kh1 {[%clk 0:01:05.3]} 39... Rxg3 {[%clk 0:00:52.5]} 40.
Rc1 {[%clk 0:01:01.4]} 40... Rxh3+ {[%clk 0:00:51.9]} 41. Kg1 {[%clk 0:00:59.2]}
41... Qh2+ {[%clk 0:00:50.6]} 42. Kf1 {[%clk 0:00:57.2]} 42... Rg3 {[%clk
0:00:50.5]} 43. Ke1 {[%clk 0:00:56.2]} 43... Rg1# {[%clk 0:00:50.4]} 0-1

[Event "Betsys MČR v online bleskovém šachu 2021"]
[Site "Chess.com"]
[Date "2021.04.17"]
[Round "9"]
[White "youhy"]
[Black "Terilka"]
[Result "0-1"]
[WhiteElo "1766"]
[BlackElo "1565"]
[TimeControl "180+1"]
[EndTime "10:29:28 PDT"]
[Termination "Uživatel Terilka zvítězil na čas"]

1. e4 {[%clk 0:03:00.9]} 1... e6 {[%clk 0:03:00.1]} 2. d4 {[%clk 0:03:00.4]}
2... d5 {[%clk 0:03:00.6]} 3. Nd2 {[%clk 0:02:59.3]} 3... Nf6 {[%clk 0:02:59.8]}
4. e5 {[%clk 0:02:59.1]} 4... Nfd7 {[%clk 0:02:59.9]} 5. Bd3 {[%clk 0:02:56.6]}
5... c5 {[%clk 0:03:00]} 6. c3 {[%clk 0:02:56.7]} 6... Nc6 {[%clk 0:02:59.6]} 7.
Ne2 {[%clk 0:02:56.7]} 7... Qb6 {[%clk 0:02:59.6]} 8. Nf3 {[%clk 0:02:52.9]}
8... Be7 {[%clk 0:02:56.6]} 9. O-O {[%clk 0:02:52.3]} 9... f6 {[%clk 0:02:37.3]}
10. exf6 {[%clk 0:02:44.7]} 10... Nxf6 {[%clk 0:02:38.2]} 11. a3 {[%clk
0:02:09.7]} 11... a5 {[%clk 0:02:35.9]} 12. Qc2 {[%clk 0:02:07.2]} 12... c4
{[%clk 0:02:26.1]} 13. Bg6+ {[%clk 0:01:50.6]} 13... hxg6 {[%clk 0:02:24.8]} 14.
Qxg6+ {[%clk 0:01:51.5]} 14... Kd7 {[%clk 0:02:20.1]} 15. Qxg7 {[%clk
0:01:35.4]} 15... Rg8 {[%clk 0:02:15.7]} 16. Qf7 {[%clk 0:01:27.5]} 16... Nd8
{[%clk 0:02:10.2]} 17. Ne5+ {[%clk 0:01:22]} 17... Kd6 {[%clk 0:02:01.9]} 18.
Qxg8 {[%clk 0:00:27.7]} 18... Nxg8 {[%clk 0:02:02.8]} 19. Bf4 {[%clk 0:00:27.8]}
19... Qa6 {[%clk 0:01:35.3]} 20. b4 {[%clk 0:00:15.6]} 20... cxb3 {[%clk
0:01:32.5]} 21. Rab1 {[%clk 0:00:09.4]} 21... a4 {[%clk 0:01:31.3]} 22. c4
{[%clk 0:00:09]} 22... dxc4 {[%clk 0:01:24.2]} 23. Nc3 {[%clk 0:00:08.4]} 23...
Bf6 {[%clk 0:01:05.5]} 24. Ne4+ {[%clk 0:00:04.1]} 24... Ke7 {[%clk 0:01:02.3]}
25. Ng6+ {[%clk 0:00:02.5]} 25... Kf7 {[%clk 0:01:00.4]} 0-1

[Event "Betsys MČR v online bleskovém šachu 2021"]
[Site "Chess.com"]
[Date "2021.04.17"]
[Round "9"]
[White "pburak"]
[Black "Federer302"]
[Result "1/2-1/2"]
[WhiteElo "1317"]
[BlackElo "1572"]
[TimeControl "180+1"]
[EndTime "10:29:38 PDT"]
[Termination "Remíza dohodou"]

1. e4 {[%clk 0:02:59.2]} 1... c5 {[%clk 0:02:57]} 2. Nf3 {[%clk 0:02:57.7]} 2...
g6 {[%clk 0:02:56.9]} 3. d4 {[%clk 0:02:56.1]} 3... cxd4 {[%clk 0:02:57]} 4.
Nxd4 {[%clk 0:02:55.4]} 4... Bg7 {[%clk 0:02:57.3]} 5. Bc4 {[%clk 0:02:47.6]}
5... Nc6 {[%clk 0:02:57.1]} 6. Nxc6 {[%clk 0:02:46.3]} 6... bxc6 {[%clk
0:02:54.2]} 7. c3 {[%clk 0:02:45.3]} 7... Nf6 {[%clk 0:02:05.6]} 8. Qf3 {[%clk
0:02:41.4]} 8... O-O {[%clk 0:01:59.7]} 9. O-O {[%clk 0:02:40.2]} 9... d5 {[%clk
0:01:51.3]} 10. exd5 {[%clk 0:02:32.6]} 10... cxd5 {[%clk 0:01:49.9]} 11. Bb3
{[%clk 0:02:30.5]} 11... Bg4 {[%clk 0:01:46.2]} 12. Qe3 {[%clk 0:02:04.6]} 12...
e6 {[%clk 0:01:40.5]} 13. Nd2 {[%clk 0:01:59.3]} 13... Bf5 {[%clk 0:01:30.9]}
14. Nf3 {[%clk 0:01:51]} 14... Ng4 {[%clk 0:01:23.4]} 15. Qe2 {[%clk 0:01:36.6]}
15... Qd6 {[%clk 0:01:10.7]} 16. h3 {[%clk 0:01:30.4]} 16... Ne5 {[%clk
0:00:59.8]} 17. g4 {[%clk 0:01:12.6]} 17... Nxf3+ {[%clk 0:00:56.5]} 18. Qxf3
{[%clk 0:01:10.4]} 18... Be4 {[%clk 0:00:56.6]} 19. Qg3 {[%clk 0:01:02.2]} 19...
Be5 {[%clk 0:00:42.8]} 20. f4 {[%clk 0:00:59.5]} 20... Qb6+ {[%clk 0:00:27.7]}
21. Be3 {[%clk 0:00:48.7]} 21... d4 {[%clk 0:00:27.9]} 22. cxd4 {[%clk
0:00:44.1]} 22... Bxd4 {[%clk 0:00:27.4]} 23. Bxd4 {[%clk 0:00:39.9]} 23...
Qxd4+ {[%clk 0:00:26.9]} 24. Qf2 {[%clk 0:00:39.7]} 24... Qxf2+ {[%clk
0:00:24.3]} 25. Rxf2 {[%clk 0:00:38.7]} 1/2-1/2

[Event "Betsys MČR v online bleskovém šachu 2021"]
[Site "Chess.com"]
[Date "2021.04.17"]
[Round "9"]
[White "Michal5"]
[Black "AlenaSouralova"]
[Result "1-0"]
[WhiteElo "1206"]
[BlackElo "916"]
[TimeControl "180+1"]
[EndTime "10:29:38 PDT"]
[Termination "Uživatel Michal5 zvítězil na čas"]

1. e4 {[%clk 0:03:00.9]} 1... e5 {[%clk 0:02:59.9]} 2. Nf3 {[%clk 0:02:57.9]}
2... Nc6 {[%clk 0:03:00]} 3. Bc4 {[%clk 0:02:57]} 3... Nf6 {[%clk 0:02:57]} 4.
d3 {[%clk 0:02:57]} 4... Bb4+ {[%clk 0:02:50.9]} 5. Bd2 {[%clk 0:02:38.3]} 5...
Bc5 {[%clk 0:02:17.5]} 6. Nc3 {[%clk 0:02:30.8]} 6... d6 {[%clk 0:02:14.8]} 7.
Bg5 {[%clk 0:02:29]} 7... Be6 {[%clk 0:02:05.1]} 8. Bb3 {[%clk 0:02:26.3]} 8...
Qd7 {[%clk 0:02:02.2]} 9. h3 {[%clk 0:02:20.8]} 9... O-O-O {[%clk 0:01:59.1]}
10. Qd2 {[%clk 0:02:19.9]} 10... h6 {[%clk 0:01:56.9]} 11. Bh4 {[%clk
0:02:17.6]} 11... g5 {[%clk 0:01:55.8]} 12. Bg3 {[%clk 0:02:17.3]} 12... Rdg8
{[%clk 0:01:52.5]} 13. Bxe6 {[%clk 0:02:13.9]} 13... Qxe6 {[%clk 0:01:50.9]} 14.
a3 {[%clk 0:02:13.6]} 14... h5 {[%clk 0:01:38]} 15. b4 {[%clk 0:02:11.7]} 15...
h4 {[%clk 0:01:35.2]} 16. Bh2 {[%clk 0:02:06.7]} 16... g4 {[%clk 0:01:31.4]} 17.
hxg4 {[%clk 0:02:06.4]} 17... Nxg4 {[%clk 0:01:28.5]} 18. bxc5 {[%clk
0:02:01.6]} 18... dxc5 {[%clk 0:01:26.7]} 19. Nd5 {[%clk 0:01:50.7]} 19... Nxh2
{[%clk 0:01:15.2]} 20. Rxh2 {[%clk 0:01:47.6]} 20... h3 {[%clk 0:01:11.5]} 21.
gxh3 {[%clk 0:01:42.9]} 21... Rxh3 {[%clk 0:01:05.3]} 22. Rxh3 {[%clk
0:01:42.4]} 22... Qxh3 {[%clk 0:01:04.3]} 23. O-O-O {[%clk 0:01:24.7]} 23...
Qxf3 {[%clk 0:00:58.8]} 24. Qe3 {[%clk 0:01:21.7]} 24... Qg4 {[%clk 0:00:51.2]}
25. Qxc5 {[%clk 0:01:17.2]} 25... Qd7 {[%clk 0:00:34.6]} 26. Rh1 {[%clk
0:01:04.5]} 26... Kb8 {[%clk 0:00:14.5]} 27. Nf6 {[%clk 0:01:02.3]} 27... Qd4
{[%clk 0:00:04.5]} 28. Qxd4 {[%clk 0:01:00.7]} 28... Nxd4 {[%clk 0:00:02.9]} 29.
Nxg8 {[%clk 0:01:01.3]} 29... Ne2+ {[%clk 0:00:02.2]} 30. Kd2 {[%clk 0:01:01]}
1-0

[Event "Betsys MČR v online bleskovém šachu 2021"]
[Site "Chess.com"]
[Date "2021.04.17"]
[Round "9"]
[White "ffbp3q"]
[Black "xPsylocke"]
[Result "0-1"]
[WhiteElo "2353"]
[BlackElo "2246"]
[TimeControl "180+1"]
[EndTime "10:29:41 PDT"]
[Termination "Uživatel xPsylocke zvítězil na čas"]

1. d4 {[%clk 0:02:46]} 1... Nf6 {[%clk 0:02:59.6]} 2. c4 {[%clk 0:02:45]} 2...
g6 {[%clk 0:02:59]} 3. Nc3 {[%clk 0:02:44.4]} 3... Bg7 {[%clk 0:02:59.5]} 4. e4
{[%clk 0:02:44.5]} 4... d6 {[%clk 0:02:59]} 5. Nf3 {[%clk 0:02:44.4]} 5... O-O
{[%clk 0:02:58.1]} 6. h3 {[%clk 0:02:44.7]} 6... Nbd7 {[%clk 0:02:56.2]} 7. Bg5
{[%clk 0:02:44]} 7... h6 {[%clk 0:02:51.8]} 8. Be3 {[%clk 0:02:43.5]} 8... e5
{[%clk 0:02:44.7]} 9. d5 {[%clk 0:02:42.5]} 9... a5 {[%clk 0:02:43]} 10. g4
{[%clk 0:02:34]} 10... h5 {[%clk 0:02:33.3]} 11. g5 {[%clk 0:02:26]} 11... Ne8
{[%clk 0:02:32.6]} 12. Nh4 {[%clk 0:02:23.7]} 12... Nc5 {[%clk 0:02:29.2]} 13.
Be2 {[%clk 0:02:20.4]} 13... c6 {[%clk 0:02:15.1]} 14. Qd2 {[%clk 0:01:46.4]}
14... cxd5 {[%clk 0:02:11.5]} 15. cxd5 {[%clk 0:01:45.2]} 15... Bd7 {[%clk
0:02:08.8]} 16. Bxc5 {[%clk 0:01:40.2]} 16... dxc5 {[%clk 0:02:08.1]} 17. Bb5
{[%clk 0:01:25.3]} 17... Nd6 {[%clk 0:02:05.1]} 18. Bxd7 {[%clk 0:01:24.5]}
18... Qxd7 {[%clk 0:02:02.1]} 19. a4 {[%clk 0:01:20.4]} 19... Kh7 {[%clk
0:01:52.4]} 20. Qe2 {[%clk 0:00:42.4]} 20... f5 {[%clk 0:01:39.3]} 21. gxf6
{[%clk 0:00:31.5]} 21... Bxf6 {[%clk 0:01:36.8]} 22. Nf3 {[%clk 0:00:27.3]}
22... c4 {[%clk 0:01:15.9]} 23. O-O-O {[%clk 0:00:08.7]} 23... b5 {[%clk
0:01:05.5]} 24. axb5 {[%clk 0:00:03]} 24... Nxb5 {[%clk 0:01:03.5]} 25. Nxb5
{[%clk 0:00:02.4]} 25... Qxb5 {[%clk 0:01:04.4]} 26. Rd2 {[%clk 0:00:01.5]}
26... Rab8 {[%clk 0:01:00.2]} 27. Rc2 {[%clk 0:00:01.2]} 27... Rfc8 {[%clk
0:00:56.2]} 0-1

[Event "Betsys MČR v online bleskovém šachu 2021"]
[Site "Chess.com"]
[Date "2021.04.17"]
[Round "9"]
[White "clarissamcclellan"]
[Black "Hanicka1517"]
[Result "1-0"]
[WhiteElo "1836"]
[BlackElo "1622"]
[TimeControl "180+1"]
[EndTime "10:29:41 PDT"]
[Termination "Uživatel clarissamcclellan zvítězil po vzdání soupeře"]

1. d4 {[%clk 0:02:49.5]} 1... Nf6 {[%clk 0:02:59.6]} 2. c4 {[%clk 0:02:47.3]}
2... c5 {[%clk 0:02:59.4]} 3. Nf3 {[%clk 0:02:43.9]} 3... cxd4 {[%clk
0:02:57.9]} 4. Nxd4 {[%clk 0:02:43.1]} 4... e5 {[%clk 0:02:58]} 5. Nb5 {[%clk
0:02:41.1]} 5... d5 {[%clk 0:02:58.1]} 6. cxd5 {[%clk 0:02:39.9]} 6... Bc5
{[%clk 0:02:58.1]} 7. g3 {[%clk 0:02:37.9]} 7... Qb6 {[%clk 0:02:48.7]} 8. e3
{[%clk 0:02:35.4]} 8... O-O {[%clk 0:02:43.6]} 9. N5c3 {[%clk 0:02:32.5]} 9...
e4 {[%clk 0:02:41.5]} 10. Bg2 {[%clk 0:02:31.5]} 10... Re8 {[%clk 0:02:41.2]}
11. O-O {[%clk 0:02:30.1]} 11... Bg4 {[%clk 0:02:33.8]} 12. Qc2 {[%clk
0:02:26.5]} 12... Bf3 {[%clk 0:02:20.2]} 13. Na4 {[%clk 0:02:21.5]} 13... Qb5
{[%clk 0:01:54.8]} 14. Nxc5 {[%clk 0:01:41.9]} 14... Rc8 {[%clk 0:01:51.3]} 15.
b4 {[%clk 0:01:25.3]} 15... Bxg2 {[%clk 0:01:46.3]} 16. Kxg2 {[%clk 0:01:22]}
16... b6 {[%clk 0:01:46.3]} 17. Ba3 {[%clk 0:01:14.2]} 17... bxc5 {[%clk
0:01:46.2]} 18. bxc5 {[%clk 0:01:13.1]} 18... Na6 {[%clk 0:01:31.4]} 19. Nc3
{[%clk 0:01:06.8]} 19... Qd3 {[%clk 0:01:25.2]} 20. Qxd3 {[%clk 0:01:05.1]}
20... exd3 {[%clk 0:01:26.1]} 21. c6 {[%clk 0:01:00.7]} 21... Nc7 {[%clk
0:01:11.1]} 22. e4 {[%clk 0:00:59.9]} 22... Nfe8 {[%clk 0:01:03.9]} 23. Rad1
{[%clk 0:00:53.8]} 23... Rab8 {[%clk 0:00:57.1]} 24. Rxd3 {[%clk 0:00:50.6]}
24... Nb5 {[%clk 0:00:57.5]} 25. Nxb5 {[%clk 0:00:49.5]} 25... Rxb5 {[%clk
0:00:57.5]} 26. Rb3 {[%clk 0:00:42.6]} 26... Rxb3 {[%clk 0:00:54.7]} 27. axb3
{[%clk 0:00:43.5]} 27... f6 {[%clk 0:00:53.4]} 28. Rc1 {[%clk 0:00:39.2]} 28...
Kf7 {[%clk 0:00:48.3]} 29. d6 {[%clk 0:00:36.9]} 29... Nxd6 {[%clk 0:00:48.6]}
30. Bxd6 {[%clk 0:00:36.4]} 30... Ke6 {[%clk 0:00:49.3]} 31. Bf4 {[%clk
0:00:35.2]} 31... g5 {[%clk 0:00:48.9]} 32. Be3 {[%clk 0:00:34.7]} 32... Kd6
{[%clk 0:00:45]} 33. Bxa7 {[%clk 0:00:34.5]} 33... Rxc6 {[%clk 0:00:44.7]} 34.
Rxc6+ {[%clk 0:00:33.8]} 34... Kxc6 {[%clk 0:00:45.6]} 35. Bd4 {[%clk
0:00:33.9]} 35... Kb5 {[%clk 0:00:46]} 36. Bxf6 {[%clk 0:00:34]} 36... Kb4
{[%clk 0:00:46.6]} 37. Bxg5 {[%clk 0:00:34.4]} 37... Kxb3 {[%clk 0:00:47.2]} 38.
e5 {[%clk 0:00:34.5]} 1-0

[Event "Betsys MČR v online bleskovém šachu 2021"]
[Site "Chess.com"]
[Date "2021.04.17"]
[Round "9"]
[White "marosino"]
[Black "JosefBara"]
[Result "1-0"]
[WhiteElo "1562"]
[BlackElo "1301"]
[TimeControl "180+1"]
[EndTime "10:29:41 PDT"]
[Termination "Uživatel marosino zvítězil matem"]

1. b3 {[%clk 0:02:59.4]} 1... e6 {[%clk 0:02:59.8]} 2. Bb2 {[%clk 0:02:57.9]}
2... d5 {[%clk 0:02:59.8]} 3. g3 {[%clk 0:02:57.9]} 3... c5 {[%clk 0:03:00]} 4.
Bg2 {[%clk 0:02:58]} 4... Nc6 {[%clk 0:02:59.9]} 5. e3 {[%clk 0:02:58.3]} 5...
Nf6 {[%clk 0:03:00.3]} 6. Ne2 {[%clk 0:02:58.1]} 6... Be7 {[%clk 0:03:00.6]} 7.
O-O {[%clk 0:02:57.7]} 7... O-O {[%clk 0:03:00.6]} 8. d4 {[%clk 0:02:57.2]} 8...
cxd4 {[%clk 0:03:00.5]} 9. exd4 {[%clk 0:02:57.1]} 9... a6 {[%clk 0:02:59.5]}
10. c4 {[%clk 0:02:56.5]} 10... dxc4 {[%clk 0:02:59.1]} 11. bxc4 {[%clk
0:02:56.1]} 11... b5 {[%clk 0:02:56.3]} 12. c5 {[%clk 0:02:54.6]} 12... Bb7
{[%clk 0:02:55.9]} 13. a3 {[%clk 0:02:54]} 13... Rb8 {[%clk 0:02:55.9]} 14. Nbc3
{[%clk 0:02:44.8]} 14... Na5 {[%clk 0:02:49.8]} 15. Na2 {[%clk 0:02:40.6]} 15...
Bxg2 {[%clk 0:02:47.3]} 16. Kxg2 {[%clk 0:02:40]} 16... Qd5+ {[%clk 0:02:46.8]}
17. Kg1 {[%clk 0:02:39.4]} 17... Nc4 {[%clk 0:02:46.3]} 18. Rb1 {[%clk 0:02:29]}
18... Ne4 {[%clk 0:02:25.4]} 19. Nb4 {[%clk 0:02:25.9]} 19... Qd8 {[%clk
0:02:18.4]} 20. Bc3 {[%clk 0:01:56.4]} 20... Nxc3 {[%clk 0:02:11.6]} 21. Nxc3
{[%clk 0:01:55.6]} 21... a5 {[%clk 0:02:10.4]} 22. Nc6 {[%clk 0:01:52.5]} 22...
Qc7 {[%clk 0:02:08.4]} 23. Nxb8 {[%clk 0:01:50]} 23... Rxb8 {[%clk 0:02:07.6]}
24. Nxb5 {[%clk 0:01:47.3]} 24... Qc6 {[%clk 0:02:00.3]} 25. Nd6 {[%clk
0:01:43.5]} 25... Rxb1 {[%clk 0:01:55.4]} 26. Qxb1 {[%clk 0:01:42]} 26... Bxd6
{[%clk 0:01:53.2]} 27. cxd6 {[%clk 0:01:41]} 27... Qxd6 {[%clk 0:01:53.3]} 28.
Rd1 {[%clk 0:01:35.5]} 28... h6 {[%clk 0:01:51.9]} 29. Qb5 {[%clk 0:01:28.7]}
29... Nxa3 {[%clk 0:01:48.1]} 30. Qxa5 {[%clk 0:01:23.8]} 30... Nc2 {[%clk
0:01:46.6]} 31. Qc5 {[%clk 0:01:20.2]} 31... Qxc5 {[%clk 0:01:37]} 32. dxc5
{[%clk 0:01:20.1]} 32... Nb4 {[%clk 0:01:36.5]} 33. Rb1 {[%clk 0:01:17.5]} 33...
Nc6 {[%clk 0:01:35.8]} 34. Rb6 {[%clk 0:01:14.8]} 34... Na5 {[%clk 0:01:33.1]}
35. c6 {[%clk 0:01:13.5]} 35... Nxc6 {[%clk 0:01:31.6]} 36. Rxc6 {[%clk
0:01:13.1]} 36... Kf8 {[%clk 0:01:32.1]} 37. Kg2 {[%clk 0:01:13.1]} 37... Ke7
{[%clk 0:01:32.3]} 38. Kf3 {[%clk 0:01:13.3]} 38... Kf6 {[%clk 0:01:32.5]} 39.
Ke4 {[%clk 0:01:12.2]} 39... g6 {[%clk 0:01:32.7]} 40. f4 {[%clk 0:01:11.9]}
40... h5 {[%clk 0:01:31.2]} 41. h3 {[%clk 0:01:11]} 41... Kg7 {[%clk 0:01:27.8]}
42. Ke5 {[%clk 0:01:09.1]} 42... f6+ {[%clk 0:01:23.9]} 43. Kxe6 {[%clk
0:01:08.7]} 43... g5 {[%clk 0:01:23.8]} 44. Rc7+ {[%clk 0:01:08]} 44... Kg6
{[%clk 0:01:23.8]} 45. fxg5 {[%clk 0:01:07.3]} 45... fxg5 {[%clk 0:01:23.4]} 46.
Ke5 {[%clk 0:01:05.8]} 46... g4 {[%clk 0:01:23.1]} 47. hxg4 {[%clk 0:01:05.3]}
47... hxg4 {[%clk 0:01:22.6]} 48. Kf4 {[%clk 0:01:04.8]} 48... Kh5 {[%clk
0:01:21.4]} 49. Rc5+ {[%clk 0:01:04.5]} 49... Kg6 {[%clk 0:01:21.1]} 50. Rg5+
{[%clk 0:01:03]} 50... Kf6 {[%clk 0:01:20.9]} 51. Rxg4 {[%clk 0:01:03.1]} 51...
Kf7 {[%clk 0:01:20.7]} 52. Rg5 {[%clk 0:01:01.2]} 52... Kf6 {[%clk 0:01:20.9]}
53. Ra5 {[%clk 0:01:00.9]} 53... Kf7 {[%clk 0:01:20.7]} 54. Ra6 {[%clk
0:00:59.1]} 54... Kg7 {[%clk 0:01:20.1]} 55. Kf5 {[%clk 0:00:58.4]} 55... Kf7
{[%clk 0:01:20.3]} 56. Ra7+ {[%clk 0:00:57.7]} 56... Kf8 {[%clk 0:01:20.1]} 57.
Kf6 {[%clk 0:00:56.5]} 57... Kg8 {[%clk 0:01:19.9]} 58. g4 {[%clk 0:00:56.1]}
58... Kh8 {[%clk 0:01:19.4]} 59. Kg6 {[%clk 0:00:55.4]} 59... Kg8 {[%clk
0:01:19.7]} 60. Ra8# {[%clk 0:00:55.1]} 1-0